bitfinex-derivatives/quotes_SOLF0:USTF0_20241107
["timestamp","ask_amount","ask_price","bid_price","bid_amount"]
[1731002661667,14.02495177,196.49,196.43,2.5426]
[1731002662057,3.26,196.51,196.44,2.5424]
[1731002662254,14.02495177,196.54,196.43,14.02495177]
[1731002662460,4.6178,196.55,196.46,14.02495177]
[1731002665859,15.38275177,196.55,196.44,14.02495177]
[1731002666658,2.5413,196.52,196.45,2.5422]
[1731002667361,15.38275177,196.55,196.45,2.5422]
[1731002667562,2.5413,196.52,196.45,2.5422]
[1731002667762,15.38275177,196.55,196.44,14.02495177]
[1731002667967,2.5415,196.51,196.44,14.02495177]
[1731002668360,15.38275177,196.55,196.44,14.02495177]
[1731002668558,2.5413,196.52,196.44,14.02495177]
[1731002668760,15.38275177,196.55,196.44,14.02495177]
[1731002669459,14.02495177,196.52,196.41,14.02495177]
[1731002669663,2.5414,196.51,196.44,2.5423]
[1731002669955,2.5414,196.51,196.33,1.4752]
[1731002669956,14.02495177,196.5,196.36,3.26]
[1731002670161,14.02495177,196.5,196.36,14.02495177]
[1731002670162,2.5421,196.46,196.36,14.02495177]
[1731002670566,14.02495177,196.47,196.36,14.02495177]
[1731002670769,2.5424,196.44,196.34,3.26]
[1731002670965,14.02495177,196.45,196.33,1.4752]
[1731002670966,14.02495177,196.45,196.33,14.91565177]
[1731002671172,14.02495177,196.42,196.3,3.26]
[1731002671373,2.5428,196.41,196.34,2.5436]
[1731002671663,14.02495177,196.42,196.34,2.5436]
[1731002671857,14.02495177,196.42,196.3,14.02495177]
[1731002672057,2.543,196.4,196.33,2.5437]
[1731002672866,16.56795177,196.4,196.33,2.5437]
[1731002673179,16.56795177,196.4,196.19,15.23]
[1731002673470,14.02495177,196.4,196.33,2.5437]
[1731002673773,2.543,196.39,196.33,2.5437]
[1731002674371,2.543,196.39,196.27,19.86948544]
[1731002674674,14.02495177,196.37,196.28,2.48453153]
[1731002675066,14.02495177,196.37,196.31,2.544]
[1731002675469,2.5437,196.34,196.27,3.26]
[1731002675671,14.02495177,196.37,196.27,3.26]
[1731002676067,14.02495177,196.37,196.27,5.84111524]
[1731002676466,16.56825177,196.37,196.3,2.5441]
[1731002676676,14.02495177,196.37,196.27,5.84111524]
[1731002676871,2.5431,196.38,196.32,2.5439]
[1731002677066,14.02495177,196.38,196.27,19.86606701]
[1731002677469,2.5433,196.37,196.31,2.544]
[1731002677666,14.02495177,196.38,196.27,19.86606701]
[1731002678072,14.02495177,196.38,196.31,2.5439]
[1731002678267,14.02495177,196.4,196.29,14.02495177]
[1731002678572,1.391,196.42,196.32,14.02495177]
[1731002679773,1.391,196.42,196.33,3.26]
[1731002679976,1.391,196.42,196.37,2.5432]
[1731002680364,15.31375177,196.45,196.34,14.02495177]
[1731002680569,15.31375177,196.45,196.4,2.5428]
[1731002680969,15.31375177,196.45,196.34,14.02495177]
[1731002681170,15.31375177,196.45,196.39,2.5429]
[1731002681765,15.31375177,196.45,196.34,14.02495177]
[1731002681972,15.31375177,196.45,196.38,2.5431]
[1731002682470,14.02495177,196.45,196.34,14.02495177]
[1731002682673,14.02495177,196.45,196.4,2.5428]
[1731002682868,2.6454,196.49,196.4,3.26]
[1731002683075,1.273,196.49,196.43,2.5424]
[1731002683370,14.02495177,196.53,196.43,2.5424]
[1731002684177,2.5417,196.49,196.41,2.5426]
[1731002684478,2.5417,196.49,196.4,3.26]
[1731002684675,14.02495177,196.5,196.4,3.26]
[1731002684973,2.542,196.47,196.4,3.26]
[1731002685180,14.02495177,196.48,196.4,3.26]
[1731002685674,2.5422,196.45,196.4,3.26]
[1731002685877,14.02495177,196.48,196.4,3.26]
[1731002686281,2.5422,196.45,196.39,2.543]
[1731002686481,16.56715177,196.45,196.36,17.28495177]
[1731002686983,16.56715177,196.45,196.37,2.5432]
[1731002687177,16.56715177,196.45,196.36,17.28495177]
[1731002687477,16.56715177,196.45,196.36,3.26]
[1731002688074,14.02495177,196.45,196.36,5.8032]
[1731002688276,2.5424,196.44,196.36,3.26]
[1731002688475,3.846,196.44,196.36,3.26]
[1731002688873,14.02495177,196.45,196.36,3.26]
[1731002689079,14.02495177,196.48,196.37,14.02495177]
[1731002689275,14.02495177,196.48,196.38,2.57612848]
[1731002689480,14.02495177,196.48,196.42,2.5425]
[1731002690281,16.56675177,196.48,196.41,2.5427]
[1731002690481,16.56675177,196.48,196.37,14.02495177]
[1731002691080,16.56675177,196.48,196.41,2.5426]
[1731002691484,16.56675177,196.48,196.37,14.02495177]
[1731002691686,2.5422,196.46,196.4,2.5428]
[1731002691888,14.02495177,196.48,196.39,14.02495177]
[1731002692081,2.6809,196.49,196.43,2.5424]
[1731002692476,3.26,196.53,196.42,17.28495177]
[1731002692477,14.02495177,196.53,196.42,17.28495177]
[1731002692681,3.8423,196.54,196.47,2.5419]
[1731002693281,1.281,196.59,196.49,14.02495177]
[1731002693486,3.8214,196.59,196.51,2.5414]
[1731002693682,3.8214,196.59,196.51,16.56635177]
[1731002693683,1.281,196.59,196.51,16.56635177]
[1731002694588,2.5406,196.57,196.51,14.02495177]
[1731002695086,2.541,196.55,196.49,3.26]
[1731002695887,2.5411,196.54,196.49,3.26]
[1731002696087,14.02495177,196.56,196.49,3.26]
[1731002696284,1.3658,196.55,196.45,3.26]
[1731002696488,2.5412,196.53,196.47,2.5419]
[1731002698289,14.02495177,196.54,196.45,3.26]
[1731002698490,2.5417,196.5,196.45,5.8022]
[1731002699090,2.83792,196.52,196.46,2.5421]
[1731002699285,2.83792,196.52,196.45,3.26]
[1731002699485,2.83792,196.52,196.43,14.02495177]
[1731002699680,2.83792,196.52,196.43,17.28495177]
[1731002699991,0.29652,196.52,196.45,2.5422]
[1731002700285,2.5415,196.51,196.45,2.5422]
[1731002701186,2.5414,196.52,196.45,2.5422]
[1731002701391,14.02495177,196.54,196.45,2.5422]
[1731002702585,2.5414,196.51,196.45,2.5421]
[1731002702787,1.3658,196.55,196.47,14.02495177]
[1731002703188,1.3658,196.55,196.5,2.5415]
[1731002703491,1.3658,196.55,196.47,14.02495177]
[1731002703891,16.56565177,196.57,196.5,2.5415]
[1731002704287,14.02495177,196.57,196.5,2.5415]
[1731002704692,16.56575177,196.57,196.5,2.5415]
[1731002704893,14.02495177,196.57,196.5,2.5415]
[1731002705489,2.5409,196.56,196.5,2.5415]
[1731002706192,2.5409,196.56,196.49,3.26]
[1731002706193,2.5411,196.54,196.49,5.8017]
[1731002706392,14.02495177,196.57,196.49,3.26]
[1731002706593,2.7571,196.58,196.49,3.26]
[1731002706796,14.24976177,196.62,196.54,2.541]
[1731002706989,0.22481,196.62,196.55,3.26]
[1731002707193,2.76481,196.62,196.57,2.5406]
[1731002707394,0.22481,196.62,196.54,3.26]
[1731002707592,0.22481,196.62,196.55,14.02495177]
[1731002707789,14.02495177,196.61,196.54,3.26]
[1731002708390,2.5403,196.6,196.54,3.26]
[1731002708987,0.22481,196.62,196.54,3.26]
[1731002708988,14.02495177,196.61,196.54,3.26]
[1731002709194,14.02495177,196.61,196.51,14.02495177]
[1731002709394,14.02495177,196.58,196.49,3.26]
[1731002709598,2.5409,196.56,196.49,5.8017]
[1731002710497,2.5409,196.56,196.49,3.26]
[1731002710696,0.22481,196.62,196.4,15.49165177]
[1731002710697,2.5414,196.51,196.4,1.4667]
[1731002710903,14.02495177,196.55,196.43,14.02495177]
[1731002711308,2.5414,196.52,196.43,14.02495177]
[1731002711495,2.5414,196.52,196.41,3.26]
[1731002711704,2.5414,196.52,196.45,2.5422]
[1731002712198,14.02495177,196.52,196.41,3.26]
[1731002712504,2.5417,196.5,196.42,3.26]
[1731002713208,2.5417,196.5,196.4,14.02495177]
[1731002713209,2.5418,196.49,196.41,2.5427]
[1731002713413,14.02495177,196.47,196.38,3.26]
[1731002713808,2.5422,196.46,196.38,2.5431]
[1731002714111,14.02495177,196.42,196.29,1.4545]
[1731002714320,2.5428,196.41,196.32,2.5439]
[1731002714623,14.02495177,196.42,196.32,2.5439]
[1731002714816,2.5428,196.4,196.32,2.5439]
[1731002715209,16.56775177,196.4,196.32,2.5439]
[1731002715411,2.5431,196.38,196.31,3.26]
[1731002715615,2.5431,196.38,196.3,2.5441]
[1731002715817,14.02495177,196.38,196.28,3.26]
[1731002716014,14.02495177,196.38,196.28,14.02495177]
[1731002716314,14.02495177,196.38,196.24,0.8837]
[1731002716315,14.02495177,196.35,196.25,14.02495177]
[1731002716617,14.02495177,196.35,196.26,2.5447]
[1731002716816,14.02495177,196.35,196.25,17.28495177]
[1731002717012,14.02495177,196.35,196.19,0.2868]
[1731002717013,14.02495177,196.32,196.1,5.31899989]
[1731002717214,14.02495177,196.3,196.19,14.02495177]
[1731002717413,22.48554282,196.31,196.16,22.48554282]
[1731002717620,22.48554282,196.31,196.17,3.26]
[1731002717621,2.6626,196.29,196.17,3.26]
[1731002717818,2.6626,196.29,196.19,2.5456]
[1731002718018,2.6626,196.29,196.17,3.26]
[1731002718222,2.6626,196.29,196.21,2.5453]
[1731002718516,2.6626,196.29,196.2,22.48554282]
[1731002718816,25.02924282,196.34,196.2,22.48554282]
[1731002719010,2.5437,196.34,196.23,22.48554282]
[1731002719212,2.5437,196.34,196.23,25.74554282]
[1731002719715,2.5438,196.33,196.24,2.5448]
[1731002720316,2.5438,196.33,196.23,25.74554282]
[1731002720317,3.26,196.36,196.23,25.74554282]
[1731002720512,2.5442,196.3,196.2,22.48554282]
[1731002720728,22.48554282,196.31,196.18,3.26]
[1731002721025,1.263,196.29,196.18,3.26]
[1731002721519,22.48554282,196.28,196.14,22.48554282]
[1731002721920,22.48554282,196.25,196.11,3.26]
[1731002722121,22.48554282,196.25,196.11,22.48554282]
[1731002722325,22.48554282,196.25,196.12,3.26]
[1731002722718,2.5449,196.24,196.15,2.546]
[1731002722926,22.48554282,196.28,196.14,22.48554282]
[1731002723425,2.5446,196.27,196.16,2.5459]
[1731002723624,1.263,196.29,196.18,22.48554282]
[1731002723923,1.263,196.29,196.22,2.5452]
[1731002724119,1.263,196.29,196.21,22.48554282]
[1731002724314,1.3522,196.3,196.21,22.48554282]
[1731002724722,1.2809,196.34,196.24,22.48554282]
[1731002724917,1.2809,196.34,196.16,2.82382176]
[1731002724918,25.74554282,196.39,196.27,22.48554282]
[1731002725124,22.48554282,196.39,196.27,25.74554282]
[1731002725427,2.5431,196.39,196.27,25.74554282]
[1731002725617,28.41164282,196.42,196.27,25.74554282]
[1731002726014,28.41164282,196.42,196.29,2.5442]
[1731002726422,2.5432,196.38,196.29,2.5442]
[1731002726623,28.41164282,196.42,196.27,3.26]
[1731002727623,2.5434,196.36,196.27,3.26]
[1731002728015,22.48554282,196.39,196.27,5.8044]
[1731002728215,2.5436,196.35,196.27,5.8044]
[1731002728420,22.48554282,196.36,196.16,2.82382176]
[1731002728622,2.5441,196.31,196.23,2.545]
[1731002728922,2.5441,196.31,196.19,22.48554282]
[1731002729225,2.5443,196.3,196.2,3.26]
[1731002729425,3.8029,196.3,196.2,3.26]
[1731002729624,1.3593,196.29,196.18,3.26]
[1731002729926,2.5447,196.26,196.18,3.26]
[1731002730126,6.0088,196.29,196.13,22.48554282]
[1731002730431,2.5449,196.24,196.16,3.26]
[1731002731322,6.0088,196.29,196.16,3.26]
[1731002731829,22.48554282,196.27,196.16,3.26]
[1731002732023,22.48554282,196.27,196.1,22.48554282]
[1731002732228,22.48554282,196.27,196.11,3.26]
[1731002732428,22.48554282,196.27,196.12,3.26]
[1731002732823,22.48554282,196.24,196.11,3.26]
[1731002733024,3.26,196.23,196.1,22.48554282]
[1731002733224,2.5456,196.2,196.1,25.03214282]
[1731002733431,2.5456,196.2,196.1,22.48554282]
[1731002733620,3.26,196.23,196.1,22.48554282]
[1731002733926,3.26,196.23,195.93,344.0978]
[1731002734128,22.48554282,196.21,196.04,22.48554282]
[1731002734329,2.5461,196.16,196.07,2.547]
[1731002734524,5.9201,196.2,196.04,22.48554282]
[1731002734837,1.3277,196.19,196.03,25.74554282]
[1731002735128,22.48554282,196.17,196.03,3.26]
[1731002735931,22.48554282,196.17,196.05,2.5473]
[1731002736425,2.5466,196.11,196.04,2.5475]
[1731002736625,2.5466,196.11,195.92,0.2953]
[1731002736626,1.3318,196.1,195.92,0.2953]
[1731002736830,2.6273,196.1,195.96,3.26]
[1731002737030,1.3178,196.09,195.96,3.26]
[1731002737430,4.5778,196.09,195.95,22.48554282]
[1731002737629,4.5778,196.09,195.98,2.5483]
[1731002737828,1.3178,196.09,195.95,25.74554282]
[1731002738028,1.3178,196.09,195.98,22.48554282]
[1731002738331,1.3178,196.09,195.97,22.48554282]
[1731002738539,2.6273,196.1,196.0,22.48554282]
[1731002738736,3.9585,196.16,196.03,22.48554282]
[1731002738929,3.9585,196.16,196.04,3.26]
[1731002739235,2.5463,196.14,196.07,2.5471]
[1731002739530,22.48554282,196.14,196.0,22.48554282]
[1731002739832,2.5467,196.1,196.01,2.5478]
[1731002740131,7.2185,196.16,196.0,3.26]
[1731002740339,2.547,196.09,196.0,5.808]
[1731002740526,22.48554282,196.12,196.0,3.26]
[1731002740931,22.48554282,196.06,195.95,2.5487]
[1731002741135,3.9433,196.05,195.93,3.26]
[1731002742134,3.9433,196.05,195.95,2.5486]
[1731002742628,2.5478,196.03,195.95,2.5486]
[1731002742831,3.9433,196.05,195.95,2.5487]
[1731002743222,2.5479,196.01,195.9,22.48554282]
[1731002743422,3.9433,196.05,195.92,3.26]
[1731002744029,3.9433,196.05,195.9,22.48554282]
[1731002744231,2.5478,196.02,195.91,3.26]
[1731002744423,3.9433,196.05,195.85,3.26]
[1731002744424,22.48554282,196.0,195.85,3.26]
[1731002744832,22.48554282,196.0,195.84,25.74554282]
[1731002746337,2.5487,195.96,195.84,25.74554282]
[1731002746636,3.26,195.99,195.84,25.74554282]
[1731002746837,3.26,196.01,195.91,2.5491]
[1731002747029,3.26,196.01,195.86,22.48554282]
[1731002747536,3.26,196.0,195.86,22.48554282]
[1731002747932,22.48554282,196.03,195.86,22.48554282]
[1731002748134,3.26,196.02,195.86,22.48554282]
[1731002748535,3.26,196.01,195.86,22.48554282]
[1731002748736,3.26,196.01,195.84,3.26]
[1731002748737,22.48554282,196.0,195.84,3.26]
[1731002748943,3.9433,196.05,195.88,22.48554282]
[1731002749240,25.74554282,196.04,195.88,22.48554282]
[1731002749739,25.74554282,196.04,195.86,22.48554282]
[1731002749935,22.48554282,196.01,195.86,22.48554282]
[1731002750434,25.74554282,196.01,195.86,22.48554282]
[1731002751033,2.5486,195.96,195.86,22.48554282]
[1731002751235,25.74554282,196.01,195.86,22.48554282]
[1731002751436,1.3403,195.95,195.86,25.03524282]
[1731002751641,1.3403,195.95,195.86,22.48554282]
[1731002752233,3.889,195.95,195.86,22.48554282]
[1731002752737,1.3403,195.95,195.65,2.52325239]
[1731002752940,25.12554282,195.94,195.74,0.7885]
[1731002753141,25.12554282,195.94,195.78,22.48554282]
[1731002753343,25.12554282,195.94,195.82,2.5504]
[1731002753344,2.5494,195.9,195.82,2.5504]
[1731002753540,25.12554282,195.94,195.82,2.5504]
[1731002753741,2.5494,195.9,195.82,2.5504]
[1731002754043,2.5494,195.9,195.78,22.48554282]
[1731002754044,2.64,195.94,195.78,22.48554282]
[1731002754343,25.12554282,195.94,195.79,3.26]
[1731002754540,25.12554282,195.94,195.8,2.5503]
[1731002754741,22.48554282,195.9,195.74,22.48554282]
[1731002754944,3.26,195.89,195.75,0.93746226]
[1731002755139,3.26,195.89,195.74,22.48554282]
[1731002755340,22.48554282,195.87,195.71,22.48554282]
[1731002755548,3.26,195.89,195.71,22.48554282]
[1731002755549,22.48554282,195.84,195.71,22.48554282]
[1731002755735,7.2968,195.83,195.71,22.48554282]
[1731002755939,2.5504,195.81,195.73,2.5512]
[1731002756141,4.0368,195.83,195.71,22.48554282]
[1731002756336,4.0368,195.83,195.74,22.48554282]
[1731002756541,1.3284,195.83,195.75,3.26]
[1731002756739,1.3569,195.88,195.77,22.48554282]
[1731002756941,1.3569,195.88,195.82,2.5501]
[1731002757245,1.3569,195.88,195.77,22.48554282]
[1731002757548,1.3569,195.88,195.84,2.5498]
[1731002757747,3.26,195.94,195.81,22.48554282]
[1731002757940,4.5064,195.94,195.81,25.74554282]
[1731002758347,1.2464,195.94,195.81,25.74554282]
[1731002758548,1.2464,195.94,195.88,2.5493]
[1731002758847,1.2464,195.94,195.84,22.48554282]
[1731002759744,1.2464,195.94,195.89,2.5491]
[1731002760146,1.2464,195.94,195.87,3.26]
[1731002760851,1.2464,195.94,195.89,2.5491]
[1731002761650,1.2464,195.94,195.81,0.1827]
[1731002761651,1.2464,195.94,195.73,2.53399588]
[1731002761947,4.5064,195.94,195.78,22.48554282]
[1731002762142,4.5064,195.94,195.79,3.26]
[1731002762346,1.2464,195.94,195.85,22.48554282]
[1731002762547,1.2464,195.94,195.85,3.26]
[1731002762746,1.2464,195.94,195.85,25.74554282]
[1731002762944,2.5488,195.92,195.85,5.8096]
[1731002763356,2.549,195.91,195.82,2.5501]
[1731002763646,1.2464,195.94,195.81,3.26]
[1731002763955,2.5488,195.92,195.85,2.5497]
[1731002764151,2.5488,195.92,195.82,22.48554282]
[1731002764345,1.2464,195.94,195.82,22.48554282]
[1731002764649,1.2464,195.94,195.71,23.52712621]
[1731002764650,22.48554282,195.87,195.69,22.48554282]
[1731002764856,4.8385,195.86,195.69,22.48554282]
[1731002765147,4.8385,195.86,195.69,25.98554282]
[1731002765546,1.3086,195.85,195.69,25.98554282]
[1731002767055,2.55,195.84,195.75,2.551]
[1731002767250,1.3086,195.85,195.75,3.5]
[1731002768352,1.3086,195.85,195.79,2.5504]
[1731002768756,22.48554282,195.87,195.75,3.5]
[1731002768949,2.5498,195.85,195.78,2.5506]
[1731002769254,22.48554282,195.87,195.72,3.5]
[1731002770048,22.48554282,195.87,195.72,25.98554282]
[1731002770252,2.5496,195.86,195.78,2.5506]
[1731002770555,1.2486,195.89,195.78,3.5]
[1731002771152,2.5494,195.88,195.8,2.5504]
[1731002771554,2.5494,195.88,195.78,3.5]
[1731002771555,3.7978,195.89,195.81,2.5502]
[1731002771745,2.5492,195.89,195.78,3.5]
[1731002772057,2.5492,195.89,195.79,3.5]
[1731002772557,2.5492,195.89,195.82,2.55]
[1731002772759,2.5496,195.87,195.79,3.5]
[1731002772958,22.48554282,195.87,195.79,3.5]
[1731002774061,1.334,195.89,195.79,3.5]
[1731002775159,1.334,195.89,195.75,3.5]
[1731002775352,2.55,195.83,195.76,2.5509]
[1731002775550,22.48554282,195.84,195.75,3.5]
[1731002775957,22.48554282,195.87,195.75,3.5]
[1731002776461,22.48554282,195.87,195.77,2.5507]
[1731002777257,22.48554282,195.87,195.75,3.5]
[1731002777461,22.48554282,195.84,195.75,3.5]
[1731002777758,2.551,195.76,195.69,2.5517]
[1731002777951,22.48554282,195.78,195.63,22.48554282]
[1731002778362,3.7927,195.77,195.64,3.5]
[1731002779859,2.5512,195.74,195.66,2.5521]
[1731002780262,2.5514,195.73,195.65,2.5523]
[1731002780562,3.7927,195.77,195.64,3.5]
[1731002780563,26.27824282,195.77,195.64,3.5]
[1731002780762,26.27824282,195.77,195.66,2.5522]
[1731002780960,26.27824282,195.77,195.64,3.5]
[1731002781164,23.66294282,195.77,195.64,3.5]
[1731002781869,2.551,195.76,195.69,2.5518]
[1731002782059,23.66294282,195.77,195.64,3.5]
[1731002782368,2.5511,195.75,195.65,3.5]
[1731002782559,23.66294282,195.77,195.65,3.5]
[1731002782973,2.551,195.76,195.69,2.5518]
[1731002783261,23.66294282,195.77,195.63,22.48554282]
[1731002783463,2.5513,195.74,195.66,3.5]
[1731002784062,2.5511,195.75,195.67,2.552]
[1731002784262,1.2891,195.76,195.66,3.5]
[1731002784461,1.1774,195.77,195.66,3.5]
[1731002784866,2.5509,195.76,195.7,2.5516]
[1731002785063,1.1774,195.77,195.66,3.5]
[1731002785768,3.7282,195.77,195.66,3.5]
[1731002786262,2.551,195.76,195.69,2.5518]
[1731002786464,2.551,195.76,195.66,3.5]
[1731002787165,3.7282,195.77,195.66,3.5]
[1731002787874,2.5509,195.76,195.66,3.5]
[1731002788167,1.1774,195.77,195.66,3.5]
[1731002788364,2.5509,195.76,195.7,2.5517]
[1731002788561,1.1774,195.77,195.66,3.5]
[1731002789363,22.48554282,195.76,195.6,22.48554282]
[1731002789565,23.67334282,195.76,195.61,3.5]
[1731002789760,2.5516,195.71,195.65,2.5522]
[1731002789960,23.67334282,195.76,195.65,2.5522]
[1731002790366,2.5514,195.72,195.65,2.5522]
[1731002791379,2.5514,195.72,195.66,2.5522]
[1731002791569,1.1774,195.77,195.67,3.5]
[1731002791767,1.1774,195.77,195.68,3.5]
[1731002791973,1.1774,195.77,195.71,2.5515]
[1731002792573,22.48554282,195.81,195.71,2.5515]
[1731002792776,2.5506,195.78,195.71,2.5515]
[1731002792974,22.48554282,195.81,195.72,2.5513]
[1731002793174,22.48554282,195.81,195.68,3.5]
[1731002793671,22.48554282,195.81,195.7,2.5517]
[1731002793875,2.5509,195.77,195.69,3.5]
[1731002794068,2.5509,195.77,195.67,2.552]
[1731002794379,2.551,195.76,195.67,3.5]
[1731002794669,22.48554282,195.81,195.68,3.5]
[1731002794876,2.5511,195.75,195.69,2.5517]
[1731002795268,22.48554282,195.81,195.69,2.5517]
[1731002795575,2.5511,195.75,195.69,2.5517]
[1731002796271,2.5516,195.71,195.68,3.5]
[1731002796573,2.5516,195.71,195.65,2.5523]
[1731002797371,22.48554282,195.72,195.58,1.2025]
[1731002797664,1.27,195.71,195.58,1.2025]
[1731002797867,1.27,195.71,195.56,22.48554282]
[1731002797868,3.7629,195.71,195.57,3.5]
[1731002798066,3.7629,195.71,195.47,2.49100219]
[1731002798067,22.48554282,195.65,195.47,2.49100219]
[1731002798275,22.48554282,195.65,195.49,3.5]
[1731002798475,22.48554282,195.65,195.5,22.48554282]
[1731002799277,2.553,195.6,195.52,2.5539]
[1731002799480,22.48554282,195.65,195.49,22.48554282]
[1731002799667,22.48554282,195.65,195.5,3.5]
[1731002799870,22.48554282,195.65,195.52,22.48554282]
[1731002800365,22.48554282,195.65,195.54,2.5537]
[1731002801872,22.48554282,195.62,195.39,15.23]
[1731002802074,3.6876,195.61,195.45,22.48554282]
[1731002802474,2.5532,195.59,195.51,2.5541]
[1731002802671,3.6876,195.61,195.45,22.48554282]
[1731002802868,3.6876,195.61,195.46,4.7423]
[1731002803069,2.5534,195.57,195.5,2.5543]
[1731002803272,2.5534,195.57,195.46,4.7423]
[1731002803576,2.5534,195.57,195.15,19.6890506]
[1731002803577,3.6876,195.61,195.2,225.0]
[1731002803776,7.1876,195.61,195.5,2.5543]
[1731002803972,7.1876,195.61,195.46,27.22784282]
[1731002804179,2.5536,195.56,195.49,2.5543]
[1731002804479,7.1876,195.61,195.49,2.5543]
[1731002804675,4.9642,195.61,195.54,2.5538]
[1731002804876,2.4113,195.61,195.49,22.48554282]
[1731002805577,2.5533,195.58,195.51,2.5542]
[1731002805978,2.5535,195.57,195.46,4.7423]
[1731002806380,28.39684282,195.61,195.46,1.2423]
[1731002806575,2.5537,195.55,195.48,2.5546]
[1731002806881,2.5537,195.55,195.47,3.5]
[1731002808082,2.5539,195.54,195.43,3.5]
[1731002808279,22.48554282,195.57,195.46,2.5547]
[1731002808681,22.48554282,195.57,195.43,3.5]
[1731002808885,23.72834282,195.57,195.45,2.5549]
[1731002809380,2.5539,195.54,195.45,2.5549]
[1731002809684,23.72834282,195.57,195.45,2.5549]
[1731002809886,2.5539,195.53,195.46,2.5547]
[1731002810682,1.2428,195.57,195.43,25.98554282]
[1731002810884,1.2428,195.57,195.46,22.48554282]
[1731002811490,22.48554282,195.59,195.46,22.48554282]
[1731002812076,2.5538,195.54,195.48,2.5545]
[1731002812289,1.1807,195.58,195.46,22.48554282]
[1731002813088,1.1807,195.58,195.47,3.5]
[1731002813888,2.5535,195.56,195.49,2.5543]
[1731002814274,1.1807,195.58,195.47,3.5]
[1731002814485,3.7341,195.58,195.51,2.5541]
[1731002814681,1.1811,195.61,195.52,22.48554282]
[1731002814878,1.1811,195.61,195.53,3.5]
[1731002815281,24.99224282,195.67,195.53,3.5]
[1731002815575,0.80111,195.63,195.57,2.5533]
[1731002815779,0.80111,195.63,195.53,25.98554282]
[1731002816083,0.80111,195.63,195.57,22.48554282]
[1731002817178,0.80111,195.63,195.6,2.5529]
[1731002817486,0.80111,195.63,195.61,3.5]
[1731002818786,0.80111,195.63,195.62,2.553]
[1731002819484,0.80111,195.63,195.61,6.0531]
[1731002820188,0.80111,195.63,195.61,3.5]
[1731002820790,0.80111,195.63,195.55,2.5538]
[1731002821081,0.80111,195.63,195.56,3.5]
[1731002822494,0.80111,195.63,195.49,23.72494282]
[1731002822694,2.4346,195.62,195.54,3.5]
[1731002822883,2.4346,195.62,195.46,2.5551]
[1731002822884,2.554,195.54,195.46,2.5551]
[1731002823193,22.48554282,195.61,195.46,3.5]
[1731002823488,2.4346,195.62,195.51,22.48554282]
[1731002823693,1.1738,195.62,195.52,3.5]
[1731002823892,2.5533,195.6,195.49,2.5546]
[1731002824090,2.5533,195.6,195.48,3.56]
[1731002824299,1.1738,195.62,195.48,3.56]
[1731002825000,1.1738,195.62,195.48,26.04554282]
[1731002825299,2.5534,195.59,195.51,2.5543]
[1731002825591,2.5534,195.59,195.48,22.48554282]
[1731002825793,2.5538,195.56,195.49,2.5546]
[1731002825991,1.2482,195.58,195.47,4.8299]
[1731002826188,22.48554282,195.57,195.41,36.8]
[1731002826387,2.5542,195.53,195.45,2.5552]
[1731002826894,4.8438,195.56,195.42,3.56]
[1731002827092,2.5543,195.52,195.45,2.5552]
[1731002827598,2.5543,195.52,195.46,2.5551]
[1731002827800,22.48554282,195.54,195.46,2.5551]
[1731002828091,2.555,195.47,195.42,3.56]
[1731002828291,22.48554282,195.5,195.39,3.56]
[1731002828498,22.48554282,195.5,195.38,1.2699]
[1731002829687,22.48554282,195.5,195.36,4.774]
[1731002830090,22.48554282,195.5,195.4,2.5558]
[1731002831497,1.2884,195.49,195.37,2.5562]
[1731002832093,2.5553,195.45,195.37,2.5562]
[1731002832294,1.2884,195.49,195.33,3.56]